{"text_format":"1","workbook":"xlsx","n_sheets":160,"sheets":["Start","User Guide","Data","True Peer Estimator","Reading-49","Reading-50","Reading-51","Reading-52","Reading-53","Reading-54","Reading-55","Reading-56","Reading-57","Reading-58","Reading-59","Reading-60","Reading-61","Reading-62","Reading-63","Reading-64","Reading-65","Reading-66","Reading-67","Reading-68","Reading-69","Reading-70","Reading-71","Reading-72","Reading-73","Reading-74","Reading-75","Reading-76","Reading-77","Reading-78","Reading-79","Reading-80","Reading-81","Reading-82","Reading-83","Reading-84","Reading-85","Reading-86","Reading-87","Reading-88","Reading-89","Reading-90","Reading-91","Reading-92","Reading-93","Reading-94","Reading-95","Reading-96","Reading-97","Reading-98","Reading-99","Reading-100","Writing-49","Writing-50","Writing-51","Writing-52","Writing-53","Writing-54","Writing-55","Writing-56","Writing-57","Writing-58","Writing-59","Writing-60","Writing-61","Writing-62","Writing-63","Writing-64","Writing-65","Writing-66","Writing-67","Writing-68","Writing-69","Writing-70","Writing-71","Writing-72","Writing-73","Writing-74","Writing-75","Writing-76","Writing-77","Writing-78","Writing-79","Writing-80","Writing-81","Writing-82","Writing-83","Writing-84","Writing-85","Writing-86","Writing-87","Writing-88","Writing-89","Writing-90","Writing-91","Writing-92","Writing-93","Writing-94","Writing-95","Writing-96","Writing-97","Writing-98","Writing-99","Writing-100","Math-49","Math-50","Math-51","Math-52","Math-53","Math-54","Math-55","Math-56","Math-57","Math-58","Math-59","Math-60","Math-61","Math-62","Math-63","Math-64","Math-65","Math-66","Math-67","Math-68","Math-69","Math-70","Math-71","Math-72","Math-73","Math-74","Math-75","Math-76","Math-77","Math-78","Math-79","Math-80","Math-81","Math-82","Math-83","Math-84","Math-85","Math-86","Math-87","Math-88","Math-89","Math-90","Math-91","Math-92","Math-93","Math-94","Math-95","Math-96","Math-97","Math-98","Math-99","Math-100"],"not_rendered":{"charts":317,"images":5,"macros":1,"external_links":0,"defined_names":12,"comments":0,"pivot_tables":0},"unopened":[{"sheet":"Reading-49","index":4,"reason":"not_a_worksheet"},{"sheet":"Reading-50","index":5,"reason":"not_a_worksheet"},{"sheet":"Reading-51","index":6,"reason":"not_a_worksheet"},{"sheet":"Reading-52","index":7,"reason":"not_a_worksheet"},{"sheet":"Reading-53","index":8,"reason":"not_a_worksheet"},{"sheet":"Reading-54","index":9,"reason":"not_a_worksheet"},{"sheet":"Reading-55","index":10,"reason":"not_a_worksheet"},{"sheet":"Reading-56","index":11,"reason":"not_a_worksheet"},{"sheet":"Reading-57","index":12,"reason":"not_a_worksheet"},{"sheet":"Reading-58","index":13,"reason":"not_a_worksheet"},{"sheet":"Reading-59","index":14,"reason":"not_a_worksheet"},{"sheet":"Reading-60","index":15,"reason":"not_a_worksheet"},{"sheet":"Reading-61","index":16,"reason":"not_a_worksheet"},{"sheet":"Reading-62","index":17,"reason":"not_a_worksheet"},{"sheet":"Reading-63","index":18,"reason":"not_a_worksheet"},{"sheet":"Reading-64","index":19,"reason":"not_a_worksheet"},{"sheet":"Reading-65","index":20,"reason":"not_a_worksheet"},{"sheet":"Reading-66","index":21,"reason":"not_a_worksheet"},{"sheet":"Reading-67","index":22,"reason":"not_a_worksheet"},{"sheet":"Reading-68","index":23,"reason":"not_a_worksheet"},{"sheet":"Reading-69","index":24,"reason":"not_a_worksheet"},{"sheet":"Reading-70","index":25,"reason":"not_a_worksheet"},{"sheet":"Reading-71","index":26,"reason":"not_a_worksheet"},{"sheet":"Reading-72","index":27,"reason":"not_a_worksheet"},{"sheet":"Reading-73","index":28,"reason":"not_a_worksheet"},{"sheet":"Reading-74","index":29,"reason":"not_a_worksheet"},{"sheet":"Reading-75","index":30,"reason":"not_a_worksheet"},{"sheet":"Reading-76","index":31,"reason":"not_a_worksheet"},{"sheet":"Reading-77","index":32,"reason":"not_a_worksheet"},{"sheet":"Reading-78","index":33,"reason":"not_a_worksheet"},{"sheet":"Reading-79","index":34,"reason":"not_a_worksheet"},{"sheet":"Reading-80","index":35,"reason":"not_a_worksheet"},{"sheet":"Reading-81","index":36,"reason":"not_a_worksheet"},{"sheet":"Reading-82","index":37,"reason":"not_a_worksheet"},{"sheet":"Reading-83","index":38,"reason":"not_a_worksheet"},{"sheet":"Reading-84","index":39,"reason":"not_a_worksheet"},{"sheet":"Reading-85","index":40,"reason":"not_a_worksheet"},{"sheet":"Reading-86","index":41,"reason":"not_a_worksheet"},{"sheet":"Reading-87","index":42,"reason":"not_a_worksheet"},{"sheet":"Reading-88","index":43,"reason":"not_a_worksheet"},{"sheet":"Reading-89","index":44,"reason":"not_a_worksheet"},{"sheet":"Reading-90","index":45,"reason":"not_a_worksheet"},{"sheet":"Reading-91","index":46,"reason":"not_a_worksheet"},{"sheet":"Reading-92","index":47,"reason":"not_a_worksheet"},{"sheet":"Reading-93","index":48,"reason":"not_a_worksheet"},{"sheet":"Reading-94","index":49,"reason":"not_a_worksheet"},{"sheet":"Reading-95","index":50,"reason":"not_a_worksheet"},{"sheet":"Reading-96","index":51,"reason":"not_a_worksheet"},{"sheet":"Reading-97","index":52,"reason":"not_a_worksheet"},{"sheet":"Reading-98","index":53,"reason":"not_a_worksheet"},{"sheet":"Reading-99","index":54,"reason":"not_a_worksheet"},{"sheet":"Reading-100","index":55,"reason":"not_a_worksheet"},{"sheet":"Writing-49","index":56,"reason":"not_a_worksheet"},{"sheet":"Writing-50","index":57,"reason":"not_a_worksheet"},{"sheet":"Writing-51","index":58,"reason":"not_a_worksheet"},{"sheet":"Writing-52","index":59,"reason":"not_a_worksheet"},{"sheet":"Writing-53","index":60,"reason":"not_a_worksheet"},{"sheet":"Writing-54","index":61,"reason":"not_a_worksheet"},{"sheet":"Writing-55","index":62,"reason":"not_a_worksheet"},{"sheet":"Writing-56","index":63,"reason":"not_a_worksheet"},{"sheet":"Writing-57","index":64,"reason":"not_a_worksheet"},{"sheet":"Writing-58","index":65,"reason":"not_a_worksheet"},{"sheet":"Writing-59","index":66,"reason":"not_a_worksheet"},{"sheet":"Writing-60","index":67,"reason":"not_a_worksheet"},{"sheet":"Writing-61","index":68,"reason":"not_a_worksheet"},{"sheet":"Writing-62","index":69,"reason":"not_a_worksheet"},{"sheet":"Writing-63","index":70,"reason":"not_a_worksheet"},{"sheet":"Writing-64","index":71,"reason":"not_a_worksheet"},{"sheet":"Writing-65","index":72,"reason":"not_a_worksheet"},{"sheet":"Writing-66","index":73,"reason":"not_a_worksheet"},{"sheet":"Writing-67","index":74,"reason":"not_a_worksheet"},{"sheet":"Writing-68","index":75,"reason":"not_a_worksheet"},{"sheet":"Writing-69","index":76,"reason":"not_a_worksheet"},{"sheet":"Writing-70","index":77,"reason":"not_a_worksheet"},{"sheet":"Writing-71","index":78,"reason":"not_a_worksheet"},{"sheet":"Writing-72","index":79,"reason":"not_a_worksheet"},{"sheet":"Writing-73","index":80,"reason":"not_a_worksheet"},{"sheet":"Writing-74","index":81,"reason":"not_a_worksheet"},{"sheet":"Writing-75","index":82,"reason":"not_a_worksheet"},{"sheet":"Writing-76","index":83,"reason":"not_a_worksheet"},{"sheet":"Writing-77","index":84,"reason":"not_a_worksheet"},{"sheet":"Writing-78","index":85,"reason":"not_a_worksheet"},{"sheet":"Writing-79","index":86,"reason":"not_a_worksheet"},{"sheet":"Writing-80","index":87,"reason":"not_a_worksheet"},{"sheet":"Writing-81","index":88,"reason":"not_a_worksheet"},{"sheet":"Writing-82","index":89,"reason":"not_a_worksheet"},{"sheet":"Writing-83","index":90,"reason":"not_a_worksheet"},{"sheet":"Writing-84","index":91,"reason":"not_a_worksheet"},{"sheet":"Writing-85","index":92,"reason":"not_a_worksheet"},{"sheet":"Writing-86","index":93,"reason":"not_a_worksheet"},{"sheet":"Writing-87","index":94,"reason":"not_a_worksheet"},{"sheet":"Writing-88","index":95,"reason":"not_a_worksheet"},{"sheet":"Writing-89","index":96,"reason":"not_a_worksheet"},{"sheet":"Writing-90","index":97,"reason":"not_a_worksheet"},{"sheet":"Writing-91","index":98,"reason":"not_a_worksheet"},{"sheet":"Writing-92","index":99,"reason":"not_a_worksheet"},{"sheet":"Writing-93","index":100,"reason":"not_a_worksheet"},{"sheet":"Writing-94","index":101,"reason":"not_a_worksheet"},{"sheet":"Writing-95","index":102,"reason":"not_a_worksheet"},{"sheet":"Writing-96","index":103,"reason":"not_a_worksheet"},{"sheet":"Writing-97","index":104,"reason":"not_a_worksheet"},{"sheet":"Writing-98","index":105,"reason":"not_a_worksheet"},{"sheet":"Writing-99","index":106,"reason":"not_a_worksheet"},{"sheet":"Writing-100","index":107,"reason":"not_a_worksheet"},{"sheet":"Math-49","index":108,"reason":"not_a_worksheet"},{"sheet":"Math-50","index":109,"reason":"not_a_worksheet"},{"sheet":"Math-51","index":110,"reason":"not_a_worksheet"},{"sheet":"Math-52","index":111,"reason":"not_a_worksheet"},{"sheet":"Math-53","index":112,"reason":"not_a_worksheet"},{"sheet":"Math-54","index":113,"reason":"not_a_worksheet"},{"sheet":"Math-55","index":114,"reason":"not_a_worksheet"},{"sheet":"Math-56","index":115,"reason":"not_a_worksheet"},{"sheet":"Math-57","index":116,"reason":"not_a_worksheet"},{"sheet":"Math-58","index":117,"reason":"not_a_worksheet"},{"sheet":"Math-59","index":118,"reason":"not_a_worksheet"},{"sheet":"Math-60","index":119,"reason":"not_a_worksheet"},{"sheet":"Math-61","index":120,"reason":"not_a_worksheet"},{"sheet":"Math-62","index":121,"reason":"not_a_worksheet"},{"sheet":"Math-63","index":122,"reason":"not_a_worksheet"},{"sheet":"Math-64","index":123,"reason":"not_a_worksheet"},{"sheet":"Math-65","index":124,"reason":"not_a_worksheet"},{"sheet":"Math-66","index":125,"reason":"not_a_worksheet"},{"sheet":"Math-67","index":126,"reason":"not_a_worksheet"},{"sheet":"Math-68","index":127,"reason":"not_a_worksheet"},{"sheet":"Math-69","index":128,"reason":"not_a_worksheet"},{"sheet":"Math-70","index":129,"reason":"not_a_worksheet"},{"sheet":"Math-71","index":130,"reason":"not_a_worksheet"},{"sheet":"Math-72","index":131,"reason":"not_a_worksheet"},{"sheet":"Math-73","index":132,"reason":"not_a_worksheet"},{"sheet":"Math-74","index":133,"reason":"not_a_worksheet"},{"sheet":"Math-75","index":134,"reason":"not_a_worksheet"},{"sheet":"Math-76","index":135,"reason":"not_a_worksheet"},{"sheet":"Math-77","index":136,"reason":"not_a_worksheet"},{"sheet":"Math-78","index":137,"reason":"not_a_worksheet"},{"sheet":"Math-79","index":138,"reason":"not_a_worksheet"},{"sheet":"Math-80","index":139,"reason":"not_a_worksheet"},{"sheet":"Math-81","index":140,"reason":"not_a_worksheet"},{"sheet":"Math-82","index":141,"reason":"not_a_worksheet"},{"sheet":"Math-83","index":142,"reason":"not_a_worksheet"},{"sheet":"Math-84","index":143,"reason":"not_a_worksheet"},{"sheet":"Math-85","index":144,"reason":"not_a_worksheet"},{"sheet":"Math-86","index":145,"reason":"not_a_worksheet"},{"sheet":"Math-87","index":146,"reason":"not_a_worksheet"},{"sheet":"Math-88","index":147,"reason":"not_a_worksheet"},{"sheet":"Math-89","index":148,"reason":"not_a_worksheet"},{"sheet":"Math-90","index":149,"reason":"not_a_worksheet"},{"sheet":"Math-91","index":150,"reason":"not_a_worksheet"},{"sheet":"Math-92","index":151,"reason":"not_a_worksheet"},{"sheet":"Math-93","index":152,"reason":"not_a_worksheet"},{"sheet":"Math-94","index":153,"reason":"not_a_worksheet"},{"sheet":"Math-95","index":154,"reason":"not_a_worksheet"},{"sheet":"Math-96","index":155,"reason":"not_a_worksheet"},{"sheet":"Math-97","index":156,"reason":"not_a_worksheet"},{"sheet":"Math-98","index":157,"reason":"not_a_worksheet"},{"sheet":"Math-99","index":158,"reason":"not_a_worksheet"},{"sheet":"Math-100","index":159,"reason":"not_a_worksheet"}],"bounds":{"document_bytes":16777216,"sheet_cells":100000,"rows_first":2000,"rows_last":500,"rows_between":2000,"halvings":0,"cell_chars":16384,"cell_head_chars":4096},"cells_cut":0,"cells_raw":0,"read":"whole","date_system":"1900"}

{"sheet":"Start","index":0,"n_rows":103,"n_cols":40,"rows_kept":103,"cut":false,"hidden":false,"merged":[[18,11,18,13],[19,11,19,13],[15,17,15,19],[102,3,102,16],[18,17,18,19],[19,17,19,19],[18,5,18,7],[19,5,19,7],[17,17,17,19],[17,5,17,7],[17,11,17,13],[5,3,5,7],[5,9,5,11],[16,17,16,19],[15,11,15,13],[16,11,16,13],[14,17,14,19],[14,5,14,7],[14,11,14,13],[7,2,7,4],[7,13,7,14],[13,5,13,7],[13,11,13,13],[13,17,13,19],[15,5,15,7],[16,5,16,7]]}
[]
[]
[]
[]
[]
[]
[]
[]
[]
[]
[]
[]
[]
[null,null,null,null,null,null,null,null,null,null,null,null,null,null,null,null,null,null,null,null,null,null,null,null,null,null,"Reading",null,null,null,null,"Writing",null,null,null,null,"Math"]
[null,null,null,"Enter SS",null,null,null,null,null,"Enter SS",null,null,null,null,null,"Enter SS",null,null,null,null,null,null,null,null,null,null,null,"Value","Top CI","Bot CI",null,null,"Value","Top CI","Bot CI",null,null,"Value","Top CI","Bot CI"]
[null,null,null,null,null,null,null,null,null,null,null,null,null,null,null,null,null,null,null,null,null,null,null,null,null,{"$f":"IF(OR(L47=\"\"),\"\",IF(OR(L47=1),\"\",IF(OR(L47=2),M47,IF(OR(L47=3),M48,IF(OR(L47=4),M49,IF(OR(L47=5),M50,IF(OR(L47=6),M51,IF(OR(L47=7),M52,\"\"))))))))","v":""},{"$f":"IF(AND(Z16<>\"\",AB16<>\"\",AB16>100),Z16&\" - this scores is above the graph's range\",Z16)","v":""},{"$f":"D16","v":0},{"$f":"IF(AB16<>\"\",AB16+5,\"\")","v":5},{"$f":"IF(AB16<>\"\",AB16-5,\"\")","v":-5},{"$f":"IF(OR(L$55=\"\"),\"\",IF(OR(L$55=1),\"\",IF(OR(L$55=2),M$55,IF(OR(L$55=3),M$56,IF(OR(L$55=4),M$57,IF(OR(L$55=5),M$58,\"\"))))))","v":""},{"$f":"IF(AND(AE16<>\"\",AG16<>\"\",AG16>100),AE16&\" - this scores is above the graph's range\",AE16)","v":""},{"$f":"J16","v":0},{"$f":"IF(AG16<>\"\",AG16+5,\"\")","v":5},{"$f":"IF(AG16<>\"\",AG16-5,\"\")","v":-5},{"$f":"IF(OR($L61=\"\"),\"\",IF(OR($L61=1),\"\",IF(OR($L61=2),$M61,IF(OR($L61=3),$M62,IF(OR($L61=4),$M63,IF(OR($L61=5),$M64,IF(OR($L61=6),$M65,\"\")))))))","v":""},{"$f":"IF(AND(AJ16<>\"\",AL16<>\"\",AL16>100),AJ16&\" - this scores is above the graph's range\",AJ16)","v":""},{"$f":"P16","v":0},{"$f":"IF(AL16<>\"\",AL16+5,\"\")","v":5},{"$f":"IF(AL16<>\"\",AL16-5,\"\")","v":-5}]
[null,null,null,null,null,null,null,null,null,null,null,null,null,null,null,null,null,null,null,null,null,null,null,null,null,{"$f":"IF(OR(N47=\"\"),\"\",IF(OR(N47=1),\"\",IF(OR(N47=2),O47,IF(OR(N47=3),O48,IF(OR(N47=4),O49,IF(OR(N47=5),O50,IF(OR(N47=6),O51,IF(OR(N47=7),O52,\"\"))))))))","v":""},{"$f":"IF(AND(Z17<>\"\",AB17<>\"\",AB17>100),Z17&\" - this scores is above the graph's range\",Z17)","v":""},{"$f":"D17","v":0},{"$f":"IF(AB17<>\"\",AB17+5,\"\")","v":5},{"$f":"IF(AB17<>\"\",AB17-5,\"\")","v":-5},{"$f":"IF(OR(N$55=\"\"),\"\",IF(OR(N$55=1),\"\",IF(OR(N$55=2),O$55,IF(OR(N$55=3),O$56,IF(OR(N$55=4),O$57,IF(OR(N$55=5),O$58,\"\"))))))","v":""},{"$f":"IF(AND(AE17<>\"\",AG17<>\"\",AG17>100),AE17&\" - this scores is above the graph's range\",AE17)","v":""},{"$f":"J17","v":0},{"$f":"IF(AG17<>\"\",AG17+5,\"\")","v":5},{"$f":"IF(AG17<>\"\",AG17-5,\"\")","v":-5},{"$f":"IF(OR(N$61=\"\"),\"\",IF(OR(N$61=1),\"\",IF(OR(N$61=2),O$61,IF(OR(N$61=3),O$62,IF(OR(N$61=4),O$63,IF(OR(N$61=5),O$64,IF(OR(N$61=6),O$65,\"\")))))))","v":""},{"$f":"IF(AND(AJ17<>\"\",AL17<>\"\",AL17>100),AJ17&\" - this scores is above the graph's range\",AJ17)","v":""},{"$f":"P17","v":0},{"$f":"IF(AL17<>\"\",AL17+5,\"\")","v":5},{"$f":"IF(AL17<>\"\",AL17-5,\"\")","v":-5}]
[null,null,null,null,null,null,null,null,null,null,null,null,null,null,null,null,null,null,null,null,null,null,null,null,null,{"$f":"IF(OR(R47=\"\"),\"\",IF(OR(R47=1),\"\",IF(OR(R47=2),S47,IF(OR(R47=3),S48,IF(OR(R47=4),S49,IF(OR(R47=5),S50,IF(OR(R47=6),S51,IF(OR(R47=7),S52,\"\"))))))))","v":""},"",{"$f":"D18","v":0},{"$f":"IF(AB18<>\"\",AB18+5,\"\")","v":5},{"$f":"IF(AB18<>\"\",AB18-5,\"\")","v":-5},{"$f":"IF(OR(R$55=\"\"),\"\",IF(OR(R$55=1),\"\",IF(OR(R$55=2),S$55,IF(OR($R55=3),S$56,IF(OR(R$55=4),S$57,IF(OR(R$55=5),S$58,\"\"))))))","v":""},"",{"$f":"J18","v":0},{"$f":"IF(AG18<>\"\",AG18+5,\"\")","v":5},{"$f":"IF(AG18<>\"\",AG18-5,\"\")","v":-5},{"$f":"IF(OR(R$61=\"\"),\"\",IF(OR(R$61=1),\"\",IF(OR(R$61=2),S$61,IF(OR(R$61=3),S$62,IF(OR(R$61=4),S$63,IF(OR(R$61=5),S$64,IF(OR(R$61=6),S$65,\"\")))))))","v":""},"",{"$f":"P18","v":0},{"$f":"IF(AL18<>\"\",AL18+5,\"\")","v":5},{"$f":"IF(AL18<>\"\",AL18-5,\"\")","v":-5}]
[null,null,null,null,null,null,null,null,null,null,null,null,null,null,null,null,null,null,null,null,null,null,null,null,null,{"$f":"IF(OR(T47=\"\"),\"\",IF(OR(T47=1),\"\",IF(OR(T47=2),U47,IF(OR(T47=3),U48,IF(OR(T47=4),U49,IF(OR(T47=5),U50,IF(OR(T47=6),U51,IF(OR(T47=7),U52,\"\"))))))))","v":""},"",{"$f":"D19","v":0},{"$f":"IF(AB19<>\"\",AB19+5,\"\")","v":5},{"$f":"IF(AB19<>\"\",AB19-5,\"\")","v":-5},{"$f":"IF(OR(T$55=\"\"),\"\",IF(OR(T$55=1),\"\",IF(OR(T$55=2),U$55,IF(OR(T$55=3),U$56,IF(OR(T$55=4),U$57,IF(OR(T$55=5),U$58,\"\"))))))","v":""},"",{"$f":"J19","v":0},{"$f":"IF(AG19<>\"\",AG19+5,\"\")","v":5},{"$f":"IF(AG19<>\"\",AG19-5,\"\")","v":-5},{"$f":"IF(OR(T$61=\"\"),\"\",IF(OR(T$61=1),\"\",IF(OR(T$61=2),U$61,IF(OR(T$61=3),U$62,IF(OR(T$61=4),U$63,IF(OR(T$61=5),U$64,IF(OR(T$61=6),U$65,\"\")))))))","v":""},"",{"$f":"P19","v":0},{"$f":"IF(AL19<>\"\",AL19+5,\"\")","v":5},{"$f":"IF(AL19<>\"\",AL19-5,\"\")","v":-5}]
[null,null,null,null,null,null,null,null,null,null,null,null,null,null,null,null,null,null,null,null,null,null,null,null,null,{"$f":"IF(OR(V47=\"\"),\"\",IF(OR(V47=1),\"\",IF(OR(V47=2),W47,IF(OR(V47=3),W48,IF(OR(V47=4),W49,IF(OR(V47=5),W50,IF(OR(V47=6),W51,IF(OR(V47=7),W52,\"\"))))))))","v":""},"",{"$f":"D20","v":0},{"$f":"IF(AB20<>\"\",AB20+5,\"\")","v":5},{"$f":"IF(AB20<>\"\",AB20-5,\"\")","v":-5},{"$f":"IF(OR(V$55=\"\"),\"\",IF(OR(V$55=1),\"\",IF(OR(V$55=2),W$55,IF(OR(V$55=3),W$56,IF(OR(V$55=4),W$57,IF(OR(V$55=5),W$58,\"\"))))))","v":""},"",{"$f":"J20","v":0},{"$f":"IF(AG20<>\"\",AG20+5,\"\")","v":5},{"$f":"IF(AG20<>\"\",AG20-5,\"\")","v":-5},{"$f":"IF(OR(V$61=\"\"),\"\",IF(OR(V$61=1),\"\",IF(OR(V$61=2),W$61,IF(OR(V$61=3),W$62,IF(OR(V$61=4),W$63,IF(OR(V$61=5),W$64,IF(OR(V$61=6),W$65,\"\")))))))","v":""},"",{"$f":"P20","v":0},{"$f":"IF(AL20<>\"\",AL20+5,\"\")","v":5},{"$f":"IF(AL20<>\"\",AL20-5,\"\")","v":-5}]
[]
[]
[]
[]
[]
[]
[]
[]
[]
[]
[]
[]
[]
[null,null,"Grade",null,null,null,"Zoom",null,null,null,null,null,"Program",null,null,null,null,"Degree of Difference"]
[null,1,null,null,null,null,100,null,null,null,null,1,null,null,null,null,1]
[null,2,"Kindergarten",0,null,null,null,null,null,null,null,2,"English immersion (sink or swim)","A",null,null,2,"Slightly Different","A"]
[null,3,"1st",1,null,null,null,null,null,null,null,3,"ESL-Traditional, pullout type","B",null,null,3,"Moderately Different","B"]
[null,4,"2nd",2,null,null,null,null,null,null,null,4,"ESL-Content, push-in type","C",null,null,4,"Markedly Different","C"]
[null,5,"3rd",3,null,null,null,null,null,null,null,5,"Bilingual, K-3 transition (early exit) w/ traditional ESL type","D"]
["Turn off notifications",6,"4th",4,null,null,null,null,null,null,null,6,"Bilingual, K-3 transition (early exit) w/ content ESL type","E"]
[false,7,"5th",5,null,null,null,null,null,null,null,7,"Bilingual, K-6 maintenance (late exit) type","F"]
[null,8,"6th",6,null,null,null,null,null,null,null,8,"Dual-Language, K-6 dual-immersion type","G"]
["Change in Selections?",9,"7th",7]
[{"$f":"IF(A46=A48,FALSE,TRUE)","v":true},10,"8th",8]
["original selection",11,"9th",9]
["",12,"10th",10,null,null,null,null,null,null,null,"Score 1",null,"Score 2",null,null,null,"Score 3",null,"Score 4",null,"Score 5"]
["current selection",13,"11th",11,null,null,null,null,null,null,null,1,"Basic reading skills",1,"Basic reading skills",null,null,1,"Basic reading skills",1,"Basic reading skills",1,"Basic reading skills"]
[{"$f":"B54&F54&I54","v":"111"},14,"12th",12,null,null,null,null,null,null,null,null,"Reading comprehension",null,"Reading comprehension",null,null,null,"Reading comprehension",null,"Reading comprehension",null,"Reading comprehension",1,null,1]
[null,null,null,null,null,null,null,null,null,null,null,null,"Reading fluency",null,"Reading fluency",null,null,null,"Reading fluency",null,"Reading fluency",null,"Reading fluency"]
["Reading Scores?",null,null,null,null,null,null,null,null,null,null,null,"Phonological awareness",null,"Phonological awareness",null,null,null,"Phonological awareness",null,"Phonological awareness",null,"Phonological awareness"]
[{"$f":"IF(AND(D16=\"\",D17=\"\",D18=\"\",D19=\"\",D20=\"\"),FALSE,TRUE)","v":false},null,null,null,null,null,null,null,null,null,null,null,"Orthographic processing",null,"Orthographic processing",null,null,null,"Orthographic processing",null,"Orthographic processing",null,"Orthographic processing"]
[null,null,null,null,null,null,null,null,null,null,null,null,"Other reading skill",null,"Other reading skill",null,null,null,"Other reading skill",null,"Other reading skill",null,"Other reading skill"]
["Writing Scores?","Grade Value",null,null,null,"Program Value",null,null,"Difference Value"]
[{"$f":"IF(AND(J16=\"\",J17=\"\",J18=\"\",J19=\"\",J20=\"\"),FALSE,TRUE)","v":false},1,{"$f":"IFERROR(VLOOKUP(B54,B36:D48,3,FALSE),\"\")","v":""},null,null,1,{"$f":"IFERROR(VLOOKUP(F54,L35:N42,3,FALSE),\"\")","v":0},null,1,{"$f":"IFERROR(VLOOKUP(I54,Q35:S38,3,FALSE),\"\")","v":0},2]
[null,null,null,null,null,null,null,null,null,null,null,1,"Basic writing skills",1,"Basic writing skills",null,null,1,"Basic writing skills",1,"Basic writing skills",1,"Basic writing skills"]
["Math Scores?","Final Graph",null,null,null,"Final SS","Actual SS",null,null,null,null,null,"Written expression",null,"Written expression",null,null,null,"Written expression",null,"Written expression",null,"Written expression",1,null,1]
[{"$f":"IF(AND(P16=\"\",P17=\"\",P18=\"\",P19=\"\",P20=\"\"),FALSE,TRUE)","v":false},{"$f":"IFERROR(IF(OR(B54=\"\",F54=\"\",I54=\"\"),\"\",F57),\"\")","v":""},null,null,null,{"$f":"IF(OR(G57=\"\"),\"\",IF(OR(G57>100),100,G57))","v":""},{"$f":"IFERROR(IF(OR(B54=\"\",F54=\"\",I54=\"\"),\"\",IF(J54=\"A\",VLOOKUP(F54,F75:T81,MATCH(C54,F74:T74,0),0),IF(J54=\"B\",VLOOKUP(F54,F85:T91,MATCH(C54,F84:T84,0),0),IF(J54=\"C\",VLOOKUP(F54,F95:T101,MATCH(C54,F94:T94,0),0),\"\")))),\"\")","v":""},null,null,null,null,null,"Spelling",null,"Spelling",null,null,null,"Spelling",null,"Spelling",null,"Spelling"]
[null,null,null,null,null,null,null,null,null,null,null,null,"Other writing skill",null,"Other writing skill",null,null,null,"Other writing skill",null,"Other writing skill",null,"Other writing skill"]
["Grade","Final Graph"]
[{"$f":"IFERROR(VLOOKUP(B54,B35:C48,2,FALSE),\"\")","v":0},{"$f":"IF(B57=\"\",\"\",B57)","v":""}]
[null,null,null,null,null,null,null,null,null,null,null,1,"Basic math skills",1,"Basic math skills",null,null,1,"Basic math skills",1,"Basic math skills",1,"Basic math skills"]
["Difference",null,null,null,null,null,null,null,null,null,null,null,"Math computation/calculation",null,"Math computation/calculation",null,null,null,"Math computation/calculation",null,"Math computation/calculation",null,"Math computation/calculation",1,null,1]
[{"$f":"IFERROR(VLOOKUP(I54,Q35:R38,2,FALSE),\"\")","v":0},null,null,null,null,null,null,null,null,null,null,null,"Math problem solving",null,"Math problem solving",null,null,null,"Math problem solving",null,"Math problem solving",null,"Math problem solving"]
[null,null,null,null,null,null,null,null,null,null,null,null,"Math knowledge",null,"Math knowledge",null,null,null,"Math knowledge",null,"Math knowledge",null,"Math knowledge"]
["Program",null,null,null,null,null,null,null,null,null,null,null,"Other math skill",null,"Other math skill",null,null,null,"Other math skill",null,"Other math skill",null,"Other math skill"]
[{"$f":"IFERROR(VLOOKUP(F54,L35:M42,2,FALSE),\"\")","v":0}]
[]
[]
[]
["Header Reading"]
[{"$f":"\"'\"&A63&\"' ELs in \"&A60&\" grade in \"&A66&\" programs: Average SS = \"&G57&\".\"","v":"'0' ELs in 0 grade in 0 programs: Average SS = ."}]
[]
["Name",null,null,null,null,"SLIGHTLY DIFFERENT"]
[{"$f":"IF(D6=\"\",\"\",D6)","v":""},null,null,null,null,null,null,0,1,2,3,4,5,6,7,8,9,10,11,12]
[null,null,null,"A",null,2,"A-Submersion",79,85,89,89,89,87,84,82,81,80,80,79,78]
["Date of Birth",null,null,"B",null,3,"B-ESL Traditional",79,84,88,89,88,87,85,84,84,83,82,81,80]
[{"$f":"IF(J6=\"\",\"\",J6)","v":""},null,null,"C",null,4,"C-ESL Content",79,84,85,87,88,88,89,89,89,89,89,89,89]
[null,null,null,"D",null,5,"C-Early Exit Traditional",79,82,86,90,90,90,90,90,90,90,90,90,90]
["Report Date",null,null,"E",null,6,"D-Early Exit Content",79,82,87,92,93,93,94,94,94,94,94,94,94]
[{"$f":"TODAY()","v":"2024-06-12"},null,null,"F",null,7,"F-Late Exit",79,82,87,93,95,96,99,100,101,102,102,102,102]
[null,null,null,"G",null,8,"G-Dual Immersion",79,82,89,94,97,100,101,102,103,105,106,108,109]
[]
["Student Info",null,null,null,null,"MODERATELY DIFFERENT"]
[{"$f":"\"Name: \"&A74","v":"Name: "},null,null,null,null,null,null,0,1,2,3,4,5,6,7,8,9,10,11,12]
[null,null,null,"A",null,2,"A-Submersion",69,75,79,79,79,77,74,72,71,70,70,69,68]
[null,null,null,"B",null,3,"B-ESL Traditional",69,74,78,79,78,77,75,74,74,73,72,71,70]
[null,null,null,"C",null,4,"C-ESL Content",69,74,75,77,78,78,79,79,79,79,79,79,79]
[null,null,null,"D",null,5,"C-Early Exit Traditional",69,72,76,80,80,80,80,80,80,80,80,80,80]
[null,null,null,"E",null,6,"D-Early Exit Content",69,72,77,82,83,83,84,84,84,84,84,84,84]
[null,null,null,"F",null,7,"F-Late Exit",69,72,77,83,85,86,89,90,91,92,92,92,82]
[null,null,null,"G",null,8,"G-Dual Immersion",69,72,79,84,87,90,91,92,93,95,96,98,99]
[]
[null,null,null,null,null,"MARKEDLY DIFFERENT"]
[null,null,null,null,null,null,null,0,1,2,3,4,5,6,7,8,9,10,11,12]
[null,null,null,"A",null,2,"A-Submersion",54,60,64,64,64,62,59,57,56,55,55,54,53]
[null,null,null,"B",null,3,"B-ESL Traditional",54,59,63,64,63,62,60,59,59,58,57,56,55]
[null,null,null,"C",null,4,"C-ESL Content",54,59,60,62,63,63,64,64,64,64,64,64,64]
[null,null,null,"D",null,5,"C-Early Exit Traditional",54,57,61,65,65,65,65,65,65,65,65,65,65]
[null,null,null,"E",null,6,"D-Early Exit Content",54,57,62,67,68,68,69,69,69,69,69,69,69]
[null,null,null,"F",null,7,"F-Late Exit",54,57,62,68,70,71,74,75,76,77,77,77,67]
[null,null,null,"G",null,8,"G-Dual Immersion",54,57,64,69,72,75,76,77,78,80,81,83,84]
[]
[null,null,null,"Conceptualization by S.O. Ortiz; Programming by S.O. Ortiz - Data source: Thomas & Collier, 1997, 2002\nC-LIM+ATE is Copyright © 2024 Samuel O. Ortiz, Ph.D. All Rights Reserved\nPermission for use and reproduction of graphs and data entry is granted for non-profit, educational use only."]

{"sheet":"User Guide","index":1,"n_rows":0,"n_cols":0,"rows_kept":0,"cut":false,"hidden":false,"merged":[]}

{"sheet":"Data","index":2,"n_rows":137,"n_cols":41,"rows_kept":137,"cut":false,"hidden":true,"merged":[[0,17,0,19],[0,2,0,4],[0,5,0,7],[0,8,0,10],[0,11,0,13],[0,14,0,16],[0,38,0,40],[0,20,0,22],[0,23,0,25],[0,26,0,28],[0,29,0,31],[0,32,0,34],[0,35,0,37]]}
[null,null,"K",null,null,1,null,null,2,null,null,3,null,null,4,null,null,5,null,null,6,null,null,7,null,null,8,null,null,9,null,null,10,null,null,11,null,null,12]
[null,null,"NCE","PR","SS","NCE","PR","SS","NCE","PR","SS","NCE","PR","SS","NCE","PR","SS","NCE","PR","SS","NCE","PR","SS","NCE","PR","SS","NCE","PR","SS","NCE","PR","SS","NCE","PR","SS","NCE","PR","SS","NCE","PR","SS"]
[null,"A-Submersion",20,8,79,21,11,81,34,23,89,35,24,89,35,24,89,32,19,87,28,15,84,25,12,82,27,14,84,22,9,80,21,8,79,25,12,82,24,11,81]
[null,"B-ESL Traditional",20,8,79,25,12,82,40,33,93,29,16,85,33,21,88,30,16,85,34,24,89,28,15,84,31,18,86,26,13,83,26,13,83,24,11,81,22,9,80]
[null,"C-ESL Content",20,8,79,24,11,82,30,17,85,32,19,87,41,35,94,33,21,88,44,39,96,35,24,89,42,35,94,35,24,89,33,22,88,34,23,89,31,18,86]
[null,"C-Early Exit Traditional",20,8,79,24,11,82,30,17,85,37,27,91,41,35,94,38,28,91,46,42,97,37,27,91,45,40,96,36,25,90,34,23,89,35,24,89,32,19,87]
[null,"D-Early Exit Content",20,8,79,24,11,82,28,15,84,39,30,92,37,29,91,40,32,93,43,37,95,41,34,94,45,40,96,41,34,94,41,34,94,40,32,93,39,30,92]
[null,"F-Late Exit",20,8,79,24,11,82,32,20,87,40,32,93,44,40,96,45,39,96,52,54,101,50,50,100,54,58,103,53,55,102,53,55,102,52,53,101,51,50,100]
[null,"G-Dual Immersion",20,8,79,22,9,80,33,21,88,42,35,94,44,41,96,50,50,100,53,55,102,53,52,101,56,62,104,57,63,105,59,65,106,61,70,108,65,75,110]
[]
[null,"NCE","K",1,2,3,4,5,6,7,8,9,10,11,12]
[1,"A-Submersion",{"$f":"C3","v":20},{"$f":"F3","v":21},{"$f":"I3","v":34},{"$f":"L3","v":35},{"$f":"O3","v":35},{"$f":"R3","v":32},{"$f":"U3","v":28},{"$f":"X3","v":25},{"$f":"AA3","v":27},{"$f":"AD3","v":22},{"$f":"AG3","v":21},{"$f":"AJ3","v":25},{"$f":"AM3","v":24}]
[2,"B-ESL Traditional",{"$f":"C4","v":20},{"$f":"F4","v":25},{"$f":"I4","v":40},{"$f":"L4","v":29},{"$f":"O4","v":33},{"$f":"R4","v":30},{"$f":"U4","v":34},{"$f":"X4","v":28},{"$f":"AA4","v":31},{"$f":"AD4","v":26},{"$f":"AG4","v":26},{"$f":"AJ4","v":24},{"$f":"AM4","v":22}]
[3,"C-ESL Content",20,24,30,32,41,33,44,35,42,35,33,34,31]
[4,"C-Early Exit Traditional",20,24,30,37,41,38,46,37,45,36,34,35,32]
[5,"D-Early Exit Content",20,24,28,39,37,40,43,41,45,41,41,40,39]
[6,"F-Late Exit",20,24,32,40,44,45,52,50,54,53,53,52,51]
[7,"G-Dual Immersion",20,22,33,42,44,50,53,53,56,57,59,61,65]
[]
[null,"PR","K",1,2,3,4,5,6,7,8,9,10,11,12]
[1,"A-Submersion"]
[2,"B-ESL Traditional"]
[3,"C-ESL Content"]
[4,"C-Early Exit Traditional"]
[5,"D-Early Exit Content"]
[6,"F-Late Exit"]
[7,"G-Dual Immersion"]
[]
[null,"SS",0,1,2,3,4,5,6,7,8,9,10,11,12]
[1,"A-Submersion",{"$f":"E3","v":79},{"$f":"H3","v":81},{"$f":"K3","v":89},{"$f":"N3","v":89},{"$f":"Q3","v":89},{"$f":"T3","v":87},{"$f":"W3","v":84},{"$f":"Z3","v":82},{"$f":"AC3","v":84},{"$f":"AF3","v":80},{"$f":"AI3","v":79},{"$f":"AL3","v":82},{"$f":"AO3","v":81}]
[2,"B-ESL Traditional",{"$f":"E4","v":79},{"$f":"H4","v":82},{"$f":"K4","v":93},{"$f":"N4","v":85},{"$f":"Q4","v":88},{"$f":"T4","v":85},{"$f":"W4","v":89},{"$f":"Z4","v":84},{"$f":"AC4","v":86},{"$f":"AF4","v":83},{"$f":"AI4","v":83},{"$f":"AL4","v":81},{"$f":"AO4","v":80}]
[3,"C-ESL Content",79,82,85,87,94,88,96,89,94,89,88,89,86]
[4,"C-Early Exit Traditional",79,82,85,91,94,91,97,91,96,90,89,89,87]
[5,"D-Early Exit Content",79,82,84,92,91,93,95,94,96,94,94,93,92]
[6,"F-Late Exit",79,82,87,93,96,96,101,100,103,102,102,101,100]
[7,"G-Dual Immersion",79,80,88,94,96,100,102,101,104,105,106,108,110]
[]
[]
[]
[]
[]
[]
[]
[]
[]
[]
[]
[]
[]
[]
[]
[]
[]
[]
[]
[]
[]
[]
[]
[]
[]
[]
[]
[]
[]
[]
[]
[]
[]
[]
[]
[]
[null,null,null,null,null,null,null,null,null,null,null,null,null,null,null,null,null,"SLIGHTLY DIFFERENT"]
[null,"NCE","K",1,2,3,4,5,6,7,8,9,10,11,12,null,null,"NCE","K",1,2,3,4,5,6,7,8,9,10,11,12]
[1,"A-Submersion",20,30,34,35,35,32,28,25,23,22,22,25,24,null,null,"A-Submersion",20,30,34,35,35,32,28,25,23,22,22,25,24]
[2,"B-ESL Traditional",20,27,36,34,33,32,30,28,27,26,25,24,22,null,null,"B-ESL Traditional",20,27,36,34,33,32,30,28,27,26,25,24,22]
[3,"C-ESL Content",20,27,30,32,33,33,34,35,35,35,34,34,33,null,null,"C-ESL Content",20,27,30,32,33,33,34,35,35,35,34,34,33]
[4,"C-Early Exit Traditional",20,25,31,37,38,38,38,37,36,36,34,35,34,null,null,"D-Early Exit Traditional",20,25,31,37,38,38,38,37,36,36,34,35,34]
[5,"D-Early Exit Content",20,25,32,39,40,40,41,41,41,41,41,40,39,null,null,"E-Early Exit Content",20,25,32,39,40,40,41,41,41,41,41,40,39]
[6,"F-Late Exit",20,25,32,40,43,45,48,50,52,53,53,52,51,null,null,"F-Late Exit",20,25,32,40,43,45,48,50,52,53,53,52,51]
[7,"G-Dual Immersion",20,25,34,42,46,50,52,53,55,57,59,61,63,null,null,"G-Dual Immersion",20,25,34,42,46,50,52,53,55,57,59,61,63]
[]
[null,null,null,null,null,null,null,null,null,null,null,null,null,null,null,null,null,"MODERATELY DIFFERENT"]
[null,null,null,null,null,null,null,null,null,null,null,null,null,null,null,null,null,"NCE","K",1,2,3,4,5,6,7,8,9,10,11,12]
[null,null,null,null,null,null,null,null,null,null,null,null,null,null,null,null,null,"A-Submersion",10,20,24,25,25,22,18,15,13,12,12,15,14]
[null,null,null,null,null,null,null,null,null,null,null,null,null,null,null,null,null,"B-ESL Traditional",10,17,26,24,23,22,20,18,17,16,15,14,12]
[null,null,null,null,null,null,null,null,null,null,null,null,null,null,null,null,null,"C-ESL Content",10,17,20,22,23,23,24,25,25,25,24,24,23]
[null,null,null,null,null,null,null,null,null,null,null,null,null,null,null,null,null,"D-Early Exit Traditional",10,15,21,27,28,28,28,27,26,26,24,25,24]
[null,null,null,null,null,null,null,null,null,null,null,null,null,null,null,null,null,"E-Early Exit Content",10,15,22,29,30,30,31,31,31,31,31,30,29]
[null,null,null,null,null,null,null,null,null,null,null,null,null,null,null,null,null,"F-Late Exit",10,15,22,30,33,35,38,40,42,43,43,42,41]
[null,null,null,null,null,null,null,null,null,null,null,null,null,null,null,null,null,"G-Dual Immersion",10,15,24,32,36,40,42,43,45,47,49,51,53]
[]
[null,null,null,null,null,null,null,null,null,null,null,null,null,null,null,null,null,"MARKEDLY DIFFERENT"]
[null,null,null,null,null,null,null,null,null,null,null,null,null,null,null,null,null,"NCE","K",1,2,3,4,5,6,7,8,9,10,11,12]
[null,null,null,null,null,null,null,null,null,null,null,null,null,null,null,null,null,"A-Submersion",1,10,14,15,15,12,8,5,3,2,2,5,4]
[null,null,null,null,null,null,null,null,null,null,null,null,null,null,null,null,null,"B-ESL Traditional",1,7,16,14,13,12,10,8,7,6,5,4,2]
[null,null,null,null,null,null,null,null,null,null,null,null,null,null,null,null,null,"C-ESL Content",1,7,10,12,13,13,14,15,15,15,14,14,13]
[null,null,null,null,null,null,null,null,null,null,null,null,null,null,null,null,null,"D-Early Exit Traditional",1,6,11,17,18,18,18,17,16,16,14,15,14]
[null,null,null,null,null,null,null,null,null,null,null,null,null,null,null,null,null,"E-Early Exit Content",1,6,12,19,20,20,21,21,21,21,21,20,19]
[null,null,null,null,null,null,null,null,null,null,null,null,null,null,null,null,null,"F-Late Exit",1,6,12,20,23,25,28,30,32,33,33,32,31]
[null,null,null,null,null,null,null,null,null,null,null,null,null,null,null,null,null,"G-Dual Immersion",1,6,14,22,26,30,32,33,35,37,39,41,43]
[]
[]
[]
[]
[]
[]
[]
[null,null,null,null,null,null,null,null,null,null,null,null,null,null,null,null,null,"SLIGHTLY DIFFERENT"]
[null,"SS","K",1,2,3,4,5,6,7,8,9,10,11,12,null,null,"SS","K",1,2,3,4,5,6,7,8,9,10,11,12]
[1,"a. English Immersion",79,85,89,89,89,87,84,82,81,80,80,79,78,null,1,"a. English Immersion",79,85,89,89,89,87,84,82,81,80,80,79,78]
[2,"b. ESL Traditional",79,84,88,89,88,87,85,84,84,83,82,81,80,null,2,"b. ESL Traditional",79,84,88,89,88,87,85,84,84,83,82,81,80]
[3,"c. ESL Content",79,84,85,87,88,88,89,89,89,89,89,89,89,null,3,"c. ESL Content",79,84,85,87,88,88,89,89,89,89,89,89,89]
[4,"d. Early Exit Bilingual (Trad)",79,82,86,90,90,90,90,90,90,90,90,90,90,null,4,"d. Early Exit Bilingual (Trad)",79,82,86,90,90,90,90,90,90,90,90,90,90]
[5,"e. Early Exit Bilingual (Cont)",79,82,87,92,93,93,94,94,94,94,94,94,94,null,5,"e. Early Exit Bilingual (Cont)",79,82,87,92,93,93,94,94,94,94,94,94,94]
[6,"f. Late Exit Bilingual",79,82,87,93,95,96,99,100,101,102,102,102,102,null,6,"f. Late Exit Bilingual",79,82,87,93,95,96,99,100,101,102,102,102,102]
[7,"g. Dual Immersion",79,82,89,94,97,100,101,102,103,105,106,108,109,null,7,"g. Dual Immersion",79,82,89,94,97,100,101,102,103,105,106,108,109]
[]
[null,null,null,null,null,null,null,null,null,null,null,null,null,null,null,null,null,"MODERATELY DIFFERENT"]
[null,null,null,null,null,null,null,null,null,null,null,null,null,null,null,null,null,"SS - 10","K",1,2,3,4,5,6,7,8,9,10,11,12]
[null,null,null,null,null,null,null,null,null,null,null,null,null,null,null,null,1,"a. English Immersion",69,75,79,79,79,77,74,72,71,70,70,69,68]
[null,null,null,null,null,null,null,null,null,null,null,null,null,null,null,null,2,"b. ESL Traditional",69,74,78,79,78,77,75,74,74,73,72,71,70]
[null,null,null,null,null,null,null,null,null,null,null,null,null,null,null,null,3,"c. ESL Content",69,74,75,77,78,78,79,79,79,79,79,79,79]
[null,null,null,null,null,null,null,null,null,null,null,null,null,null,null,null,4,"d. Early Exit Bilingual (Trad)",69,72,76,80,80,80,80,80,80,80,80,80,80]
[null,null,null,null,null,null,null,null,null,null,null,null,null,null,null,null,5,"e. Early Exit Bilingual (Cont)",69,72,77,82,83,83,84,84,84,84,84,84,84]
[null,null,null,null,null,null,null,null,null,null,null,null,null,null,null,null,6,"f. Late Exit Bilingual",69,72,77,83,85,86,89,90,91,92,92,92,82]
[null,null,null,null,null,null,null,null,null,null,null,null,null,null,null,null,7,"g. Dual Immersion",69,72,79,84,87,90,91,92,93,95,96,98,99]
[]
[null,null,null,null,null,null,null,null,null,null,null,null,null,null,null,null,null,"MARKEDLY DIFFERENT"]
[null,null,null,null,null,null,null,null,null,null,null,null,null,null,null,null,null,"SS - 25","K",1,2,3,4,5,6,7,8,9,10,11,12]
[null,null,null,null,null,null,null,null,null,null,null,null,null,null,null,null,1,"a. English Immersion",54,60,64,64,64,62,59,57,56,55,55,54,53]
[null,null,null,null,null,null,null,null,null,null,null,null,null,null,null,null,2,"b. ESL Traditional",54,59,63,64,63,62,60,59,59,58,57,56,55]
[null,null,null,null,null,null,null,null,null,null,null,null,null,null,null,null,3,"c. ESL Content",54,59,60,62,63,63,64,64,64,64,64,64,64]
[null,null,null,null,null,null,null,null,null,null,null,null,null,null,null,null,4,"d. Early Exit Bilingual (Trad)",54,57,61,65,65,65,65,65,65,65,65,65,65]
[null,null,null,null,null,null,null,null,null,null,null,null,null,null,null,null,5,"e. Early Exit Bilingual (Cont)",54,57,62,67,68,68,69,69,69,69,69,69,69]
[null,null,null,null,null,null,null,null,null,null,null,null,null,null,null,null,6,"f. Late Exit Bilingual",54,57,62,68,70,71,74,75,76,77,77,77,67]
[null,null,null,null,null,null,null,null,null,null,null,null,null,null,null,null,7,"g. Dual Immersion",54,57,64,69,72,75,76,77,78,80,81,83,84]

{"sheet":"True Peer Estimator","index":3,"n_rows":24,"n_cols":12,"rows_kept":24,"cut":false,"hidden":false,"merged":[[2,2,2,11],[4,2,4,11],[5,2,5,11],[6,2,6,11],[3,8,3,9],[3,4,3,6],[15,2,15,10],[16,2,16,10],[17,2,17,10],[7,2,7,11],[8,2,8,10],[8,11,9,11],[10,2,10,10],[11,2,11,10],[12,2,12,10],[13,2,13,10],[14,2,14,10],[18,2,18,9],[19,6,19,7],[20,6,20,7],[21,2,21,11]]}
[]
[]
[null,null,"True Peer Estimator (TPE v3.0) © 2024"]
[null,null,null,"Name:",{"$f":"IF(Start!D6=\"\",\"\",Start!D6)","v":""},null,null,"DOB:",{"$f":"IF(Start!J6=\"\",\"\",Start!J6)","v":""},null,"Grade:",{"$f":"IF(OR(Start!A60=\"\",Start!A60=0),\"\",Start!A60)","v":""}]
[null,null,"This worksheet provides a systematic method for collecting data and information for use in qualitatively estimating the extent to which differences in developmental experiences are likely to affect expectations of development and growth. A student’s degree of difference is dynamic and can change over time. Three categories are used:"]
[null,null,"A) Slightly Different. This category is characterized by differences in culture, language, and experiences that although not fully representative of the U.S. mainstream, have nevertheless been supported by high family SES, well-educated parents, formal elementary education in the heritage language, bilingual parents, etc.) and where opportunity for developing English language proficiency constitutes at least ½ or more of a student’s life. "]
[null,null,"B) Moderately Different. This category is characterized by differences in culture, language, and experiences that are not representative of the U.S. mainstream and where few supporting factors are present (e.g., low family SES, parental lack of education, no formal education in the heritage language, parents with limited English proficiency, etc.) or where opportunity for developing English proficiency constitutes less than ½ of a student’s life. "]
[null,null,"C) Markedly Different. This category is characterized by significant differences in culture, language, and experiences where the opportunity for developing English proficiency constitutes a small percentage of a student’s life, for example being a newcomer and having extremely limited English language development. It may also include other atypical factors that adversely influence development (e.g., exposure to war, trauma, violence, abuse, neglect, immigrant or migrant worker experience, refugee status, etc.)."]
[null,null,"To what extent has or does the student('s) or the family)'s)…?",null,null,null,null,null,null,null,null,"RATING   "]
[]
[null,null,"1. ...heritage or home culture match middle-class, mainstream U.S. values, traditions, and beliefs in supporting acquisition of school-based acculturative knowledge? ",null,null,null,null,null,null,null,null,5]
[null,null,"2. ...socio-economic status match middle-class, mainstream families in the U.S. in supporting development of school-based learning and academic skills?",null,null,null,null,null,null,null,null,4]
[null,null,"3. ...heritage or home language match middle-class, mainstream, monolingual English-speakers in supporting the acquisition of school-based English?",null,null,null,null,null,null,null,null,3]
[null,null,"4. …attended school consistently and sufficiently to provide an adequate opportunity for age or grade expected academic learning?",null,null,null,null,null,null,null,null,4]
[null,null,"5. …received formal education in their heritage language either while attending school in the U.S. or prior to coming to the U.S.?",null,null,null,null,null,null,null,null,5]
[null,null,"6. …been exposed to high level language models in English over their lifetime as compared to middle-class, monolingual English-speakers of the same age?",null,null,null,null,null,null,null,null,4]
[null,null,"7. ...English language development match same-age/grade, middle-Class, monolingual, English-speaking peers (including, reading/writing, vocabulary, and aspects of speech)?",null,null,null,null,null,null,null,null,5]
[null,null,"8. ...reside in a community where English is the dominant language and where cultural values and attitudes primarily reflect middle-class, mainstream U.S. values?",null,null,null,null,null,null,null,null,5]
[null,null,{"$f":"IF(L19=\"\",\"\",IF(AND(L19>7,L19<11),\"TRUE PEER GROUP: Slightly Different\",IF(AND(L19>10,L19<30),\"TRUE PEER GROUP: Moderately Different\",IF(AND(L19>29,L19<41),\"TRUE PEER GROUP: Markedly Different\",\"\"))))","v":"TRUE PEER GROUP: Markedly Different"},null,null,null,null,null,null,null,"TOTAL:",{"$f":"IF(L20<8,\"\",IF(L20>7,SUM(L11:L18)))","v":35}]
[null,null,null,null,null,null,null,null,null,null,null,{"$f":"COUNT(L11:L18)","v":8}]
[]
[null,null,"The True Peer Estimator is Copyright © 2024 by Samuel O. Ortiz, Ph.D. and permission to use, copy, and disseminate is granted for educational, non-profit activities only."]
[]
[null,null,100,null,null,null,null,null,{"$f":"10-COUNTBLANK(L11:L18)","v":10}]